{"text_format":"3","workbook":"xlsx","n_sheets":3,"sheets":["Начало","Бюджет за подаръци и проследява","Данни"],"not_rendered":{"charts":1,"defined_names":1},"read":"whole","date_system":"1900"}

{"sheet":"Начало","index":0,"n_rows":7,"n_cols":2,"rows_kept":7}
[null,"За шаблона"]
[null,"Използвайте този шаблон, за да записвате покупките си на подаръци и да ги проследявате по отношение на бюджета."]
[null,"Въведете в таблицата имената на близките и приятелите си, подаръците, бюджетираните и изразходваните суми и бележки и изберете повод и месец на събитието."]
[null,"Диаграмата за месечен преглед се актуализира автоматично."]
[null,"Забележка: "]
[null,"Допълнителни инструкции са предоставени в колона A в работния лист БЮДЖЕТ И ПРОСЛЕДЯВАНЕ НА ПОДАРЪЦИ. Този текст е скрит нарочно. За да премахнете текста, изберете колона А, след което изберете DELETE. За да покажете текст, изберете колона A, след което променете цвета на шрифта."]
[null,"За да научите повече за таблиците, натиснете SHIFT и след това F10 в таблица, изберете опцията ТАБЛИЦА, след което изберете АЛТЕРНАТИВЕН ТЕКСТ."]

{"sheet":"Бюджет за подаръци и проследява","index":1,"n_rows":10,"n_cols":13,"rows_kept":10,"merged":[[0,1,0,4],[0,5,0,12],[1,1,1,2],[2,1,2,12],[3,1,3,3]]}
["Създайте персонален бюджет за подаръци и проследяване в този работен лист. Заглавието на работния лист е в клетката отдясно, а пояснението в клетка F1. Полезни инструкции как да използвате този работен лист можете да намерите в клетките в тази колона.","Бюджет за подаръци и проследява",{"$nulls":3},"Попълнете колкото можете повече в началото на всяка нова година. Въведете имената на близките и приятелите си, изберете повод за подарък, изберете месец на събитието и въведете колко искате да похарчите. Всеки човек може да се появява няколко пъти в рамките на таблицата за всеки различен повод (рожден ден, празник, булчинско парти и т.н.)."]
["Етикетът за месечен преглед е в клетката вдясно, а пояснението – в клетка D2.","Месечен преглед",null,"Използвайте графиката, за да прегледате предстоящите месеци, за да планирате отрано. Регистрирайте покупките си, за да ги проследявате по отношение на бюджета си."]
["Колонната диаграма за бюджетирани суми с насложената линейна диаграма за изразходваната сума е в клетката вдясно.","Колонната диаграма за бюджетирани суми с насложената линейна диаграма за изразходваната сума е в тази клетка."]
["Бюджетът за подарък и етикетът за проследяване са в клетката вдясно.","Бюджет за подаръци и проследява"]
["Въведете подробните данни в таблицата \"Проследяване на бюджета\", започваща от клетката вдясно.","Кой","Повод","Месец","Сума\nв бюджета","Сума\nв разходите","Подарък","Връзка към подарък","В магазина/\nОнлайн","Закупен?","Опакован?","Доставен?","Бележки"]
[null,"Име 1","Рождени дни","Юни",{"v":50,"d":"50 лв."},{"v":30,"d":"30 лв."},"Обувки","Продавач","Онлайн","Да","Не","Не","16.06, билети за кино"]
[null,"Име 2","Годишнини","Април",{"v":20,"d":"20 лв."},{"v":20,"d":"20 лв."},"Котка","Продавач","В магазина","Не","Не","Не","Споменал е, че харесва кучета"]
[null,"Име 3","Празници","Юли",{"v":50,"d":"50 лв."},{"v":70,"d":"70 лв."},"Слушалки","Продавач","Онлайн","Не","Не","Не","Неща за общежитието"]
[null,"Име 4","Рождени дни","Януари",{"v":20,"d":"20 лв."},{"v":30,"d":"30 лв."},"Игра","Продавач","В магазина","Да","Да","Да"]
[null,"Име 5","Сватби","Юни",{"v":100,"d":"100 лв."},{"v":150,"d":"150 лв."},"Кристална ваза","Продавач","В магазина","Да","Да","Не"]

{"sheet":"Данни","index":2,"n_rows":13,"n_cols":8,"rows_kept":13,"hidden":true}
["Поводи",null,"Дата","Дата","Бюджетирана сума\nРождени дни","Бюджетирана сума\nПразници","Бюджетирана сума\nДруги","Изразходвана сума"]
["Рождени дни",null,"Януари","Яну",{"$f":"SUMIFS(BudgetTracker[Сума\nв бюджета],BudgetTracker[Месец],\"Януари\",BudgetTracker[Повод],\"Рождени дни\")","v":{"v":20,"d":"20 лв."}},{"$f":"SUMIFS(BudgetTracker[Сума\nв бюджета],BudgetTracker[Месец],\"Януари\",BudgetTracker[Повод],\"Празници\")","v":{"v":0,"d":"0 лв."}},{"$f":"SUMIFS(BudgetTracker[Сума\nв бюджета],BudgetTracker[Месец],\"Януари\",BudgetTracker[Повод],\"<>Празници\",BudgetTracker[Повод],\"<>Рождени дни\")","v":{"v":0,"d":"0 лв."}},{"$f":"SUMIFS(BudgetTracker[Сума\nв разходите],BudgetTracker[Месец],\"Януари\")","v":{"v":30,"d":"30 лв."}}]
["Празници",null,"Февруари","Фев",{"$f":"SUMIFS(BudgetTracker[Сума\nв бюджета],BudgetTracker[Месец],\"Февруари\",BudgetTracker[Повод],\"Рождени дни\")","v":{"v":0,"d":"0 лв."}},{"$f":"SUMIFS(BudgetTracker[Сума\nв бюджета],BudgetTracker[Месец],\"Февруари\",BudgetTracker[Повод],\"Празници\")","v":{"v":0,"d":"0 лв."}},{"$f":"SUMIFS(BudgetTracker[Сума\nв бюджета],BudgetTracker[Месец],\"Февруари\",BudgetTracker[Повод],\"<>Празници\",BudgetTracker[Повод],\"<>Рождени дни\")","v":{"v":0,"d":"0 лв."}},{"$f":"SUMIFS(BudgetTracker[Сума\nв разходите],BudgetTracker[Месец],\"Февруари\")","v":{"v":0,"d":"0 лв."}}]
["Годишнини",null,"Март","Мар",{"$f":"SUMIFS(BudgetTracker[Сума\nв бюджета],BudgetTracker[Месец],\"Март\",BudgetTracker[Повод],\"Рождени дни\")","v":{"v":0,"d":"0 лв."}},{"$f":"SUMIFS(BudgetTracker[Сума\nв бюджета],BudgetTracker[Месец],\"Март\",BudgetTracker[Повод],\"Празници\")","v":{"v":0,"d":"0 лв."}},{"$f":"SUMIFS(BudgetTracker[Сума\nв бюджета],BudgetTracker[Месец],\"Март\",BudgetTracker[Повод],\"<>Празници\",BudgetTracker[Повод],\"<>Рождени дни\")","v":{"v":0,"d":"0 лв."}},{"$f":"SUMIFS(BudgetTracker[Сума\nв разходите],BudgetTracker[Месец],\"Март\")","v":{"v":0,"d":"0 лв."}}]
["Сватби",null,"Април","Апр",{"$f":"SUMIFS(BudgetTracker[Сума\nв бюджета],BudgetTracker[Месец],\"Април\",BudgetTracker[Повод],\"Рождени дни\")","v":{"v":0,"d":"0 лв."}},{"$f":"SUMIFS(BudgetTracker[Сума\nв бюджета],BudgetTracker[Месец],\"Април\",BudgetTracker[Повод],\"Празници\")","v":{"v":0,"d":"0 лв."}},{"$f":"SUMIFS(BudgetTracker[Сума\nв бюджета],BudgetTracker[Месец],\"Април\",BudgetTracker[Повод],\"<>Празници\",BudgetTracker[Повод],\"<>Рождени дни\")","v":{"v":20,"d":"20 лв."}},{"$f":"SUMIFS(BudgetTracker[Сума\nв разходите],BudgetTracker[Месец],\"Април\")","v":{"v":20,"d":"20 лв."}}]
["Булчински партита",null,"Май","Май",{"$f":"SUMIFS(BudgetTracker[Сума\nв бюджета],BudgetTracker[Месец],\"Май\",BudgetTracker[Повод],\"Рождени дни\")","v":{"v":0,"d":"0 лв."}},{"$f":"SUMIFS(BudgetTracker[Сума\nв бюджета],BudgetTracker[Месец],\"Май\",BudgetTracker[Повод],\"Празници\")","v":{"v":0,"d":"0 лв."}},{"$f":"SUMIFS(BudgetTracker[Сума\nв бюджета],BudgetTracker[Месец],\"Май\",BudgetTracker[Повод],\"<>Празници\",BudgetTracker[Повод],\"<>Рождени дни\")","v":{"v":0,"d":"0 лв."}},{"$f":"SUMIFS(BudgetTracker[Сума\nв разходите],BudgetTracker[Месец],\"Май\")","v":{"v":0,"d":"0 лв."}}]
["Партита за бебе",null,"Юни","Юни",{"$f":"SUMIFS(BudgetTracker[Сума\nв бюджета],BudgetTracker[Месец],\"Юни\",BudgetTracker[Повод],\"Рождени дни\")","v":{"v":50,"d":"50 лв."}},{"$f":"SUMIFS(BudgetTracker[Сума\nв бюджета],BudgetTracker[Месец],\"Юни\",BudgetTracker[Повод],\"Празници\")","v":{"v":0,"d":"0 лв."}},{"$f":"SUMIFS(BudgetTracker[Сума\nв бюджета],BudgetTracker[Месец],\"Юни\",BudgetTracker[Повод],\"<>Празници\",BudgetTracker[Повод],\"<>Рождени дни\")","v":{"v":100,"d":"100 лв."}},{"$f":"SUMIFS(BudgetTracker[Сума\nв разходите],BudgetTracker[Месец],\"Юни\")","v":{"v":180,"d":"180 лв."}}]
["Абитуриентски балове",null,"Юли","Юли",{"$f":"SUMIFS(BudgetTracker[Сума\nв бюджета],BudgetTracker[Месец],\"Юли\",BudgetTracker[Повод],\"Рождени дни\")","v":{"v":0,"d":"0 лв."}},{"$f":"SUMIFS(BudgetTracker[Сума\nв бюджета],BudgetTracker[Месец],\"Юли\",BudgetTracker[Повод],\"Празници\")","v":{"v":50,"d":"50 лв."}},{"$f":"SUMIFS(BudgetTracker[Сума\nв бюджета],BudgetTracker[Месец],\"Юли\",BudgetTracker[Повод],\"<>Празници\",BudgetTracker[Повод],\"<>Рождени дни\")","v":{"v":0,"d":"0 лв."}},{"$f":"SUMIFS(BudgetTracker[Сума\nв разходите],BudgetTracker[Месец],\"Юли\")","v":{"v":70,"d":"70 лв."}}]
["Други",null,"Август","Авг",{"$f":"SUMIFS(BudgetTracker[Сума\nв бюджета],BudgetTracker[Месец],\"Август\",BudgetTracker[Повод],\"Рождени дни\")","v":{"v":0,"d":"0 лв."}},{"$f":"SUMIFS(BudgetTracker[Сума\nв бюджета],BudgetTracker[Месец],\"Август\",BudgetTracker[Повод],\"Празници\")","v":{"v":0,"d":"0 лв."}},{"$f":"SUMIFS(BudgetTracker[Сума\nв бюджета],BudgetTracker[Месец],\"Август\",BudgetTracker[Повод],\"<>Празници\",BudgetTracker[Повод],\"<>Рождени дни\")","v":{"v":0,"d":"0 лв."}},{"$f":"SUMIFS(BudgetTracker[Сума\nв разходите],BudgetTracker[Месец],\"Август\")","v":{"v":0,"d":"0 лв."}}]
[null,null,"Септември","Сеп",{"$f":"SUMIFS(BudgetTracker[Сума\nв бюджета],BudgetTracker[Месец],\"Септември\",BudgetTracker[Повод],\"Рождени дни\")","v":{"v":0,"d":"0 лв."}},{"$f":"SUMIFS(BudgetTracker[Сума\nв бюджета],BudgetTracker[Месец],\"Септември\",BudgetTracker[Повод],\"Празници\")","v":{"v":0,"d":"0 лв."}},{"$f":"SUMIFS(BudgetTracker[Сума\nв бюджета],BudgetTracker[Месец],\"Септември\",BudgetTracker[Повод],\"<>Празници\",BudgetTracker[Повод],\"<>Рождени дни\")","v":{"v":0,"d":"0 лв."}},{"$f":"SUMIFS(BudgetTracker[Сума\nв разходите],BudgetTracker[Месец],\"Септември\")","v":{"v":0,"d":"0 лв."}}]
[null,null,"Октомври","Окт",{"$f":"SUMIFS(BudgetTracker[Сума\nв бюджета],BudgetTracker[Месец],\"Октомври\",BudgetTracker[Повод],\"Рождени дни\")","v":{"v":0,"d":"0 лв."}},{"$f":"SUMIFS(BudgetTracker[Сума\nв бюджета],BudgetTracker[Месец],\"Октомври\",BudgetTracker[Повод],\"Празници\")","v":{"v":0,"d":"0 лв."}},{"$f":"SUMIFS(BudgetTracker[Сума\nв бюджета],BudgetTracker[Месец],\"Октомври\",BudgetTracker[Повод],\"<>Празници\",BudgetTracker[Повод],\"<>Рождени дни\")","v":{"v":0,"d":"0 лв."}},{"$f":"SUMIFS(BudgetTracker[Сума\nв разходите],BudgetTracker[Месец],\"Октомври\")","v":{"v":0,"d":"0 лв."}}]
[null,null,"Ноември","Ное",{"$f":"SUMIFS(BudgetTracker[Сума\nв бюджета],BudgetTracker[Месец],\"Ноември\",BudgetTracker[Повод],\"Рождени дни\")","v":{"v":0,"d":"0 лв."}},{"$f":"SUMIFS(BudgetTracker[Сума\nв бюджета],BudgetTracker[Месец],\"Ноември\",BudgetTracker[Повод],\"Празници\")","v":{"v":0,"d":"0 лв."}},{"$f":"SUMIFS(BudgetTracker[Сума\nв бюджета],BudgetTracker[Месец],\"Ноември\",BudgetTracker[Повод],\"<>Празници\",BudgetTracker[Повод],\"<>Рождени дни\")","v":{"v":0,"d":"0 лв."}},{"$f":"SUMIFS(BudgetTracker[Сума\nв разходите],BudgetTracker[Месец],\"Ноември\")","v":{"v":0,"d":"0 лв."}}]
[null,null,"Декември","Дек",{"$f":"SUMIFS(BudgetTracker[Сума\nв бюджета],BudgetTracker[Месец],\"Декември\",BudgetTracker[Повод],\"Рождени дни\")","v":{"v":0,"d":"0 лв."}},{"$f":"SUMIFS(BudgetTracker[Сума\nв бюджета],BudgetTracker[Месец],\"Декември\",BudgetTracker[Повод],\"Празници\")","v":{"v":0,"d":"0 лв."}},{"$f":"SUMIFS(BudgetTracker[Сума\nв бюджета],BudgetTracker[Месец],\"Декември\",BudgetTracker[Повод],\"<>Празници\",BudgetTracker[Повод],\"<>Рождени дни\")","v":{"v":0,"d":"0 лв."}},{"$f":"SUMIFS(BudgetTracker[Сума\nв разходите],BudgetTracker[Месец],\"Декември\")","v":{"v":0,"d":"0 лв."}}]